bitfinex/quotes_BTCUSD_20260311
["timestamp","ask_amount","ask_price","bid_price","bid_amount"]
[1773253209974,1e-08,70757.0,70733.0,0.109991]
[1773253210189,1e-08,70757.0,70734.0,0.07068736]
[1773253210391,1e-08,70757.0,70740.0,0.12603056]
[1773253210736,0.00022001,70761.0,70740.0,0.12603056]
[1773253210737,0.00022001,70767.0,70741.0,0.00144]
[1773253210937,1e-08,70770.0,70750.0,0.12603056]
[1773253211138,1e-08,70770.0,70751.0,0.00144]
[1773253211364,1e-08,70773.0,70751.0,0.00144]
[1773253212056,0.00014127,70786.0,70751.0,0.00144]
[1773253212295,0.16642592,70807.0,70751.0,0.00144]
[1773253212297,0.16642592,70818.0,70770.0,0.37809168]
[1773253212417,0.00737726,70819.0,70791.0,0.331972]
[1773253212418,1e-08,70814.0,70791.0,0.331972]
[1773253212625,1e-08,70814.0,70792.0,0.00144]
[1773253213019,0.07060812,70814.0,70792.0,0.00144]
[1773253213465,0.07060812,70814.0,70791.0,0.0014]
[1773253213661,0.07098017,70814.0,70790.0,0.0014]
[1773253213840,0.07098017,70814.0,70790.0,0.00136]
[1773253214347,0.07098017,70814.0,70783.0,0.00132]
[1773253214542,0.07098017,70814.0,70782.0,0.00132]
[1773253215058,0.07098017,70814.0,70792.0,0.002]
[1773253215282,0.07198017,70814.0,70791.0,0.00132]
[1773253215482,0.07098017,70814.0,70791.0,0.00132]
[1773253216336,0.00144,70813.0,70792.0,0.07062944]
[1773253216772,0.09198017,70814.0,70792.0,0.07062944]
[1773253217004,0.00144,70813.0,70792.0,0.07062944]
[1773253217539,0.02281206,70814.0,70792.0,0.07062944]
[1773253217970,0.0003641,70836.0,70792.0,0.07062944]
[1773253217971,0.0003641,70836.0,70800.0,0.12603056]
[1773253218182,0.07058657,70835.0,70800.0,0.12603056]
[1773253218378,0.07058657,70835.0,70801.0,0.07190047]
[1773253219179,0.0004757,70836.0,70810.0,0.12603056]
[1773253219604,0.0004757,70836.0,70811.0,0.00132]
[1773253220497,0.0004757,70836.0,70812.0,0.0706095]
[1773253220918,0.0004757,70836.0,70820.0,0.12603056]
[1773253221117,0.01149649,70843.0,70821.0,0.00132]
[1773253221118,0.0037365,70843.0,70821.0,0.00132]
[1773253221320,0.0037365,70843.0,70821.0,0.0014316]
[1773253221718,0.00144,70854.0,70821.0,0.0014316]
[1773253221719,0.0705681,70854.0,70830.0,0.12603056]
[1773253221922,0.07056665,70855.0,70831.0,0.00132]
[1773253222099,0.07056665,70855.0,70832.0,0.00132]
[1773253222299,0.07056665,70855.0,70821.0,0.0001116]
[1773253222300,0.0004949,70883.0,70833.0,0.00117866]
[1773253222521,0.07055366,70869.0,70836.0,0.07058557]
[1773253222921,0.12603056,70860.0,70830.0,0.00136]
[1773253223101,0.12603056,70860.0,70822.0,0.07059953]
[1773253223299,0.00144,70864.0,70822.0,0.07059953]
[1773253223300,0.00144,70864.0,70830.0,0.00136]
[1773253224557,0.07055868,70863.0,70811.0,0.0706095]
[1773253224847,0.12603056,70840.0,70803.0,0.20966217]
[1773253225045,0.00144,70839.0,70803.0,0.20966217]
[1773253226037,0.00144,70838.0,70804.0,0.00408]
[1773253226539,0.07058557,70836.0,70805.0,0.07061648]
[1773253226961,0.00011142,70839.0,70810.0,0.12603056]
[1773253227286,0.00011142,70839.0,70811.0,0.121738]
[1773253227445,0.00033143,70839.0,70812.0,0.146888]
[1773253227648,0.00033143,70839.0,70820.0,0.12603056]
[1773253227851,0.07057695,70845.0,70820.0,0.12603056]
[1773253227852,0.07057695,70845.0,70821.0,0.00548]
[1773253228055,0.07079482,70847.0,70821.0,0.00559142]
[1773253228847,0.07079482,70847.0,70822.0,0.07059953]
[1773253229058,0.07079497,70847.0,70822.0,0.07059953]
[1773253229498,0.00022001,70847.0,70822.0,0.07059953]
[1773253229668,0.07079472,70847.0,70822.0,0.07059953]
[1773253229862,0.00022001,70847.0,70822.0,0.07059953]
[1773253230266,0.0804219,70870.0,70830.0,0.12603056]
[1773253230455,0.09055929,70863.0,70831.0,0.0014]
[1773253230659,0.09195932,70863.0,70831.0,0.00548]
[1773253230876,0.09195932,70863.0,70832.0,0.07058956]
[1773253231360,0.09195932,70863.0,70833.0,0.0014]
[1773253232186,0.09195932,70863.0,70834.0,0.00408]
[1773253232982,0.09195932,70863.0,70832.0,0.07158937]
[1773253233184,0.09195932,70863.0,70832.0,0.07466937]
[1773253233834,0.12603056,70860.0,70832.0,0.00408]
[1773253234034,0.09195932,70863.0,70832.0,0.07466927]
[1773253234236,0.00014117,70838.0,70832.0,0.07466927]
[1773253234648,0.0014,70845.0,70832.0,0.07466927]
[1773253234801,0.09155932,70863.0,70833.0,0.0014]
[1773253234802,0.0014,70859.0,70833.0,0.0014]
[1773253235000,0.07056366,70858.0,70834.0,0.07058757]
[1773253235450,0.07056366,70858.0,70835.0,0.00408]
[1773253238138,0.07056366,70858.0,70829.0,0.0014]
[1773253238336,0.07056366,70858.0,70822.0,0.07059953]
[1773253238520,0.07056366,70858.0,70823.0,0.0014]
[1773253238722,0.00144,70857.0,70823.0,0.0014]
[1773253238909,0.00144,70856.0,70823.0,0.0014]
[1773253240164,0.07056764,70854.0,70824.0,0.07059753]
[1773253240617,0.07200764,70854.0,70824.0,0.07059753]
[1773253241945,0.07200764,70854.0,70824.0,0.06918519]
[1773253242523,0.00022001,70858.0,70830.0,0.12603056]
[1773253242670,0.07078379,70858.0,70831.0,0.00144]
[1773253244304,0.07078379,70858.0,70832.0,0.07058956]
[1773253245383,0.07078379,70858.0,70831.0,0.00144]
[1773253245783,0.558525,70857.0,70819.0,0.00144]
[1773253245985,0.558525,70857.0,70821.0,0.07071193]
[1773253245986,0.12603056,70850.0,70821.0,0.07071193]
[1773253246227,0.07057362,70848.0,70821.0,0.00011142]
[1773253247405,0.07057362,70848.0,70819.0,0.00144]
[1773253247406,0.07057362,70848.0,70814.0,0.07060686]
[1773253247749,0.2100894,70848.0,70814.0,0.07060686]
[1773253247949,0.13940434,70847.0,70814.0,0.07060686]
[1773253248329,0.13940434,70847.0,70813.0,0.07060834]
[1773253248330,0.07068506,70848.0,70813.0,0.07060834]
[1773253248701,0.07168506,70848.0,70813.0,0.07060834]
[1773253249149,0.07068506,70848.0,70813.0,0.07060834]
[1773253249556,0.07168506,70848.0,70812.0,0.00014122]
[1773253249757,0.07168506,70848.0,70792.0,0.0002]
[1773253249758,0.12603056,70840.0,70803.0,0.20966204]
[1773253249936,0.12603056,70830.0,70803.0,0.03259718]
[1773253250135,0.00144,70829.0,70793.0,0.07062782]
[1773253250456,0.07059355,70828.0,70806.0,0.0002]
[1773253251737,0.00144,70827.0,70806.0,0.0002]
[1773253252264,0.07056963,70852.0,70807.0,0.07061448]
[1773253252441,0.07056963,70852.0,70812.0,0.00014122]
[1773253252646,0.00144,70847.0,70813.0,0.00144]
[1773253253086,0.07056963,70852.0,70813.0,0.00144]
[1773253253295,0.00144,70846.0,70813.0,0.00144]
[1773253253453,0.07056963,70852.0,70813.0,0.00144]
[1773253253454,0.00144,70845.0,70813.0,0.00144]
[1773253254463,0.0705776,70844.0,70814.0,0.0706075]
[1773253254663,0.001,70828.0,70814.0,0.0706075]
[1773253255565,0.0705776,70846.0,70814.0,0.0706075]
[1773253255877,0.0720176,70846.0,70814.0,0.0706075]
[1773253257625,0.0720176,70846.0,70814.0,0.0708075]
[1773253258499,0.0720176,70846.0,70815.0,0.00144]
[1773253258862,0.0720176,70846.0,70814.0,0.0718075]
[1773253259067,0.0720176,70846.0,70815.0,0.00144]
[1773253259287,0.0720176,70846.0,70816.0,0.07060551]
[1773253260004,0.0720176,70846.0,70815.0,0.07204551]
[1773253260376,0.125632,70840.0,70812.0,0.00014122]
[1773253261078,0.00144,70839.0,70812.0,0.00014122]
[1773253261276,0.07058358,70838.0,70812.0,0.00014122]
[1773253262125,0.16642592,70837.0,70796.0,0.07062452]
[1773253262329,0.16642592,70835.0,70800.0,0.07062146]
[1773253262827,0.07058358,70838.0,70800.0,0.07062146]
[1773253262828,0.16642592,70836.0,70800.0,0.07062146]
[1773253262976,0.13959352,70835.0,70800.0,0.07062146]
[1773253263179,0.00144,70834.0,70800.0,0.19625346]
[1773253263390,0.00144,70833.0,70800.0,0.19625346]
[1773253263623,0.07058557,70836.0,70800.0,0.19625346]
[1773253263784,0.00144,70832.0,70800.0,0.07062146]
[1773253264607,0.00144,70832.0,70800.0,0.07082146]
[1773253264926,0.00144,70832.0,70801.0,0.00144]
[1773253265503,0.07059056,70831.0,70802.0,0.07061947]
[1773253267317,0.07059056,70831.0,70803.0,0.00144]
[1773253267721,0.07059056,70831.0,70804.0,0.07061747]
[1773253270224,0.07057804,70844.0,70804.0,0.07061747]
[1773253270225,0.15035592,70851.0,70810.0,0.125632]
[1773253270538,0.00022001,70863.0,70831.0,0.195053]
[1773253270747,0.15097424,70870.0,70840.0,0.125632]
[1773253270967,0.00141093,70875.0,70841.0,0.00144]
[1773253270968,0.01290001,70871.0,70841.0,0.00144]
[1773253271151,0.01290001,70871.0,70850.0,0.125632]
[1773253271152,0.01146001,70871.0,70850.0,0.125632]
[1773253271575,0.01146001,70871.0,70851.0,0.00144]
[1773253271974,0.01146001,70871.0,70852.0,0.07056963]
[1773253271975,0.01157147,70871.0,70852.0,0.07056963]
[1773253272593,0.00121094,70875.0,70852.0,0.07056963]
[1773253272962,0.0004949,70883.0,70860.0,0.125632]
[1773253273090,0.0004949,70883.0,70861.0,0.00144]
[1773253273297,0.06874918,70889.0,70861.0,0.00144]
[1773253273656,0.0705318,70890.0,70861.0,0.00144]
[1773253274020,0.0705318,70890.0,70862.0,0.07055967]
[1773253275037,0.03043912,70891.0,70863.0,0.223381]
[1773253275303,0.00012,70894.0,70863.0,0.223381]
[1773253275716,0.00012,70894.0,70863.0,0.22323986]
[1773253275925,0.00014107,70887.0,70863.0,0.22323986]
[1773253276161,0.00014107,70887.0,70870.0,0.125632]
[1773253276347,0.00014107,70887.0,70871.0,0.00144]
[1773253277727,0.00014107,70887.0,70864.0,0.07055768]
[1773253277952,0.00014107,70887.0,70871.0,0.00396]
[1773253278228,0.00014107,70887.0,70872.0,0.07054972]
[1773253278414,0.00014107,70887.0,70872.0,0.07198972]
[1773253278785,0.00014107,70887.0,70872.0,0.07054972]
[1773253278987,0.00014107,70887.0,70873.0,0.00144]
[1773253279363,0.00014107,70887.0,70874.0,0.00144]
[1773253280180,0.00014107,70887.0,70875.0,0.07054673]
[1773253280509,0.00051252,70887.0,70875.0,0.07054673]
[1773253280688,0.00037145,70887.0,70875.0,0.07054673]
[1773253281294,0.00037145,70887.0,70874.0,0.07054708]
[1773253281692,0.00037145,70887.0,70849.0,0.07057063]
[1773253281693,0.00019287,70887.0,70849.0,0.07057063]
[1773253281905,0.00019287,70887.0,70850.0,0.00144]
[1773253282111,0.00019287,70887.0,70851.0,0.00144]
[1773253282317,0.00019287,70887.0,70853.0,0.07056864]
[1773253282484,0.00019287,70887.0,70871.0,0.00022]
[1773253282886,0.00144,70886.0,70871.0,0.00022]
[1773253283132,0.00039287,70887.0,70871.0,0.00022]
[1773253283505,0.00039287,70887.0,70863.0,0.00022]
[1773253283832,0.00057137,70887.0,70863.0,0.00166]
[1773253284187,0.00057137,70887.0,70863.0,0.00022]
[1773253284401,0.07053578,70886.0,70864.0,0.07055768]
[1773253284836,0.07071428,70886.0,70864.0,0.07055768]
[1773253285237,0.00144,70885.0,70864.0,0.07055768]
[1773253285799,0.0001785,70885.0,70864.0,0.07055768]
[1773253287924,0.07053014,70892.0,70864.0,0.07055768]
[1773253287925,0.07052882,70893.0,70864.0,0.07055768]
[1773253288124,0.00011137,70893.0,70870.0,0.125632]
[1773253288362,0.00011137,70893.0,70872.0,0.07054972]
[1773253289166,1e-08,70894.0,70872.0,0.07054972]
[1773253289378,0.00014102,70913.0,70881.0,0.443225]
[1773253289539,0.00014102,70913.0,70890.0,0.125632]
[1773253289752,0.00014102,70913.0,70891.0,0.00144]
[1773253289976,0.07050356,70919.0,70891.0,0.00144]
[1773253290340,0.07087829,70920.0,70892.0,0.07052982]
[1773253290745,0.0003754,70920.0,70900.0,0.125632]
[1773253290969,0.0003754,70920.0,70873.0,0.10567491]
[1773253291166,0.07050296,70919.0,70880.0,0.125632]
[1773253291366,0.07050296,70919.0,70875.0,0.07054595]
[1773253291367,0.0708775,70920.0,70900.0,0.125632]
[1773253291613,0.07087765,70920.0,70901.0,0.00144]
[1773253291758,0.07049501,70927.0,70901.0,0.00144]
[1773253292095,0.07060638,70927.0,70901.0,0.00144]
[1773253292792,0.07060638,70927.0,70902.0,0.07051987]
[1773253292944,0.001,70920.0,70902.0,0.07051987]
[1773253293388,0.07060638,70927.0,70903.0,0.41639]
[1773253293389,0.00011137,70927.0,70903.0,0.41639]
[1773253293585,0.00011137,70927.0,70902.0,0.07051987]
[1773253294055,0.07060638,70927.0,70902.0,0.07051987]
[1773253294485,0.00011137,70927.0,70902.0,0.07051987]
[1773253294690,0.00011137,70927.0,70903.0,0.001]
[1773253295193,0.00011137,70927.0,70904.0,0.00144]
[1773253295432,0.00011137,70927.0,70905.0,0.00144]
[1773253296621,0.00011137,70927.0,70906.0,0.07051589]
[1773253297422,0.00011137,70927.0,70902.0,0.00022]
[1773253297620,0.0002,70920.0,70903.0,0.00144]
[1773253297844,0.0002,70920.0,70904.0,0.00144]
[1773253298549,0.0002,70920.0,70902.0,0.00022]
[1773253298744,0.0002,70920.0,70903.0,0.00144]
[1773253298745,0.07050296,70919.0,70903.0,0.00144]
[1773253299296,0.07050296,70919.0,70894.0,1e-08]
[1773253299297,0.07194296,70919.0,70894.0,1e-08]
[1773253299500,0.07194296,70919.0,70887.0,0.00144]
[1773253299708,0.07194296,70919.0,70888.0,0.00144]
[1773253299836,0.07194296,70919.0,70889.0,0.00144]
[1773253300170,0.07194296,70919.0,70890.0,0.00144]
[1773253300373,0.07194296,70919.0,70879.0,0.07054275]
[1773253300374,0.07294296,70919.0,70879.0,0.07054275]
[1773253300573,0.21289909,70919.0,70880.0,0.00144]
[1773253300777,0.21189909,70919.0,70881.0,0.07054076]
[1773253301270,0.21289909,70919.0,70881.0,0.05054076]
[1773253301678,0.21289909,70919.0,70881.0,0.03054076]
[1773253301836,0.13995613,70918.0,70881.0,0.03054076]
[1773253302238,0.07194296,70919.0,70881.0,0.03054076]
[1773253302863,0.07194296,70919.0,70888.0,0.25]
[1773253303071,0.07194296,70919.0,70880.0,0.07054176]
[1773253303300,0.21189909,70919.0,70881.0,0.00144]
[1773253303620,0.21289909,70919.0,70881.0,0.00144]
[1773253304021,0.21189909,70919.0,70881.0,0.00144]
[1773253304624,0.13995613,70918.0,70881.0,0.00144]
[1773253304776,0.07050595,70916.0,70882.0,0.07053977]
[1773253305841,0.07050595,70916.0,70881.0,0.00022]
[1773253306086,0.07050595,70916.0,70882.0,0.00144]
[1773253306932,0.07050595,70916.0,70883.0,0.00144]
[1773253307341,0.07050595,70916.0,70881.0,0.00022]
[1773253307537,0.07050595,70916.0,70882.0,0.00144]
[1773253307739,0.07150595,70916.0,70882.0,0.00144]
[1773253308207,0.00144,70915.0,70882.0,0.00144]
[1773253308734,0.00144,70915.0,70883.0,0.00144]
[1773253308942,0.07050793,70914.0,70884.0,0.00144]
[1773253309784,0.07050793,70914.0,70881.0,0.00022]
[1773253309993,0.125632,70910.0,70881.0,1e-08]
[1773253311054,0.07051291,70909.0,70881.0,1e-08]
[1773253311374,0.00144,70908.0,70881.0,1e-08]
[1773253312890,0.00344,70908.0,70881.0,1e-08]
[1773253313093,0.07051489,70907.0,70876.0,1e-08]
[1773253313314,0.125632,70900.0,70873.0,1e-08]
[1773253313459,1.001072,70899.0,70866.0,1e-08]
[1773253313660,0.14007001,70898.0,70866.0,1e-08]
[1773253313882,0.14007001,70898.0,70866.0,0.07055551]
[1773253314083,0.30801801,70904.0,70866.0,0.07055551]
[1773253314283,0.00144,70903.0,70866.0,0.07055551]
[1773253314481,0.00144,70903.0,70866.0,0.07092696]
[1773253314767,0.00144,70902.0,70866.0,0.07092696]
[1773253315165,0.07052186,70900.0,70866.0,0.07092696]
[1773253315605,0.00144,70899.0,70866.0,0.07092696]
[1773253316258,0.07052186,70900.0,70866.0,0.07092696]
[1773253316259,0.00144,70898.0,70866.0,0.07092696]
[1773253316445,0.00144,70898.0,70866.0,0.07192696]
[1773253316956,0.00144,70898.0,70866.0,0.07092696]
[1773253317527,0.07052484,70897.0,70866.0,0.07092696]
[1773253320226,0.07052484,70897.0,70870.0,0.1254065]
[1773253320426,0.07052484,70897.0,70866.0,0.07092696]
[1773253320841,0.07052484,70897.0,70867.0,0.0014]
[1773253321761,0.07052484,70897.0,70866.0,0.09192696]
[1773253321762,0.07052484,70897.0,70866.0,0.02137146]
[1773253321943,0.07052484,70897.0,70867.0,0.0014]
[1773253323770,0.07052484,70897.0,70868.0,0.0705537]
[1773253324622,0.00144,70896.0,70868.0,0.0705537]
[1773253325362,0.00144,70896.0,70868.0,0.0719537]
[1773253325486,0.00144,70896.0,70868.0,0.0014]
[1773253325692,0.00144,70896.0,70866.0,0.00037146]
[1773253326018,0.1254065,70890.0,70866.0,1e-08]
[1773253326203,0.00144,70889.0,70866.0,1e-08]
[1773253327241,0.00144,70889.0,70862.0,1e-08]
[1773253327392,0.00381115,70889.0,70835.0,0.16932]
[1773253327631,0.00381115,70889.0,70841.0,0.16109611]
[1773253327632,0.1254065,70880.0,70841.0,0.16109611]
[1773253327826,0.1254065,70870.0,70841.0,0.09051622]
[1773253328044,0.00144,70869.0,70842.0,0.07057959]
[1773253328700,0.14022505,70873.0,70843.0,0.0014]
[1773253328888,0.00144,70870.0,70862.0,0.00014112]
[1773253329215,0.00144,70870.0,70843.0,0.0014]
[1773253329216,0.00144,70870.0,70851.0,0.001]
[1773253329419,0.07054773,70874.0,70843.0,0.0014]
[1773253329420,0.00144,70869.0,70854.0,0.00022]
[1773253329775,0.07054773,70874.0,70854.0,0.00022]
[1773253329957,0.07054773,70874.0,70855.0,0.07056665]
[1773253330159,0.001,70870.0,70854.0,0.00022]
[1773253330558,0.07054773,70874.0,70854.0,0.00022]
[1773253331628,0.07054773,70874.0,70854.0,0.07078712]
[1773253331781,0.07054773,70874.0,70854.0,0.00222]
[1773253331979,0.07054773,70874.0,70847.0,1e-08]
[1773253332203,0.1254065,70870.0,70847.0,1e-08]
[1773253332396,0.00144,70873.0,70847.0,1e-08]
[1773253332820,0.07054773,70874.0,70847.0,1e-08]
[1773253333042,0.00144,70873.0,70847.0,1e-08]
[1773253333427,0.1254065,70870.0,70847.0,1e-08]
[1773253333761,0.1254065,70860.0,70816.0,0.10578058]
[1773253333956,0.07056366,70858.0,70826.0,0.0014]
[1773253334605,0.07056366,70858.0,70823.0,0.0014]
[1773253334819,0.07056366,70858.0,70823.0,0.07199828]
[1773253335189,0.07056366,70858.0,70827.0,0.00011137]
[1773253335317,0.07056366,70858.0,70846.0,0.00014115]
[1773253335525,0.07056366,70858.0,70827.0,0.00011137]
[1773253336169,0.07056366,70858.0,70810.0,0.07075201]
[1773253336170,0.1254065,70840.0,70810.0,0.00014122]
[1773253336468,0.00144,70839.0,70810.0,0.07086375]
[1773253336667,0.1254065,70830.0,70810.0,1e-08]
[1773253336869,0.00144,70839.0,70795.0,0.0002]
[1773253336870,0.1254065,70820.0,70795.0,1e-08]
[1773253337169,0.167948,70835.0,70795.0,0.07099816]
[1773253337371,0.24224924,70839.0,70796.0,0.00136]
[1773253337372,0.14177145,70834.0,70796.0,0.00136]
[1773253337516,0.00144,70833.0,70812.0,0.00022]
[1773253337724,0.17267961,70839.0,70812.0,0.00022]
[1773253338108,0.00144,70838.0,70812.0,0.00022]
[1773253338306,0.07058458,70837.0,70812.0,0.00022]
[1773253338523,0.07202458,70837.0,70812.0,0.00022]
[1773253338950,0.07058458,70837.0,70812.0,0.00022]
[1773253339096,0.07058458,70837.0,70801.0,0.07062008]
[1773253339097,0.00144,70836.0,70796.0,0.07062514]
[1773253339305,0.00144,70836.0,70797.0,0.07194446]
[1773253340043,0.00144,70836.0,70797.0,0.00132]
[1773253340189,0.1254065,70820.0,70795.0,0.00037206]
[1773253340398,0.00144,70819.0,70795.0,0.00037206]
[1773253341222,0.12522794,70810.0,70780.0,0.02132]
[1773253341420,0.1254065,70800.0,70785.0,1e-08]
[1773253341620,0.00144,70799.0,70785.0,1e-08]
[1773253341800,0.12577733,70810.0,70784.0,1e-08]
[1773253341801,0.00144,70798.0,70784.0,1e-08]
[1773253342011,0.00144,70797.0,70784.0,1e-08]
[1773253342358,0.00144,70797.0,70761.0,0.00148]
[1773253342359,0.07062545,70796.0,70761.0,0.00148]
[1773253342549,0.07062545,70796.0,70763.0,0.07065818]
[1773253343147,0.00144,70795.0,70769.0,0.0720124]
[1773253343344,0.07206545,70796.0,70769.0,0.0720124]
[1773253343558,0.07062226,70800.0,70769.0,0.0720124]
[1773253343725,0.00144,70799.0,70769.0,0.0720124]
[1773253344637,0.07061413,70808.0,70797.0,0.0002]
[1773253344849,0.07061413,70808.0,70769.0,0.0706524]
[1773253345846,0.07061249,70809.0,70770.0,0.1254065]
[1773253346276,0.07061249,70809.0,70771.0,0.615294]
[1773253346504,0.07061249,70809.0,70769.0,0.0706524]
[1773253347023,0.07061249,70809.0,70788.0,0.00014127]
[1773253350068,0.07161249,70809.0,70788.0,0.00014127]
[1773253350274,0.07061249,70809.0,70788.0,0.00014127]
[1773253351255,0.07161249,70809.0,70788.0,0.00014127]
[1773253352183,0.07261249,70809.0,70788.0,0.00014127]
[1773253352378,0.07161249,70809.0,70788.0,0.00014127]
[1773253352681,0.07061249,70809.0,70788.0,0.00014127]
[1773253352883,0.07161249,70809.0,70788.0,0.00014127]
[1773253353247,0.07061249,70809.0,70788.0,0.00014127]
[1773253354378,0.07098332,70810.0,70788.0,0.00014127]
[1773253354379,0.00037083,70810.0,70788.0,0.00014127]
[1773253354598,0.07058656,70836.0,70790.0,0.1254065]
[1773253354775,0.07058656,70836.0,70790.0,0.00037083]
[1773253355127,0.1254065,70830.0,70790.0,0.00037083]
[1773253355266,0.07354036,70829.0,70791.0,0.15982581]
[1773253356291,0.07354036,70827.0,70792.0,0.07062944]
[1773253358405,0.07402272,70825.0,70792.0,0.07082944]
[1773253361015,0.08110757,70823.0,70792.0,0.07082944]
[1773253361240,0.08112792,70819.0,70792.0,0.07082926]
[1773253363138,0.07060351,70818.0,70792.0,0.07082926]
[1773253363336,0.07060351,70818.0,70790.0,0.00037083]
[1773253363337,0.08115031,70817.0,70790.0,0.00037083]
[1773253363733,0.08115031,70815.0,70790.0,0.00037083]
[1773253364135,0.08115031,70816.0,70790.0,0.00037083]
[1773253364333,0.08115031,70814.0,70790.0,0.07100185]
[1773253364552,0.08115031,70814.0,70790.0,0.00037083]
[1773253365255,0.08117291,70812.0,70790.0,0.00037083]
[1773253365414,0.14013633,70812.0,70790.0,0.00037083]
[1773253365619,0.08117291,70812.0,70790.0,0.00037083]
[1773253366265,0.08117291,70810.0,70790.0,0.00037083]
[1773253366491,0.14013633,70810.0,70790.0,0.00037083]
[1773253366774,0.08117291,70811.0,70790.0,0.00037083]
[1773253366921,0.14013633,70811.0,70790.0,0.00037083]
[1773253367123,0.08117291,70811.0,70790.0,0.00037083]
[1773253367343,0.08420389,70809.0,70790.0,0.00037083]
[1773253367541,0.07061149,70810.0,70790.0,0.00037083]
[1773253367717,0.08420389,70808.0,70790.0,0.00037083]
[1773253368367,0.08420389,70808.0,70791.0,0.07063044]
[1773253368569,0.14013633,70809.0,70791.0,0.07063044]
[1773253368806,0.07061125,70811.0,70791.0,0.07063044]
[1773253369151,0.08419685,70810.0,70791.0,0.07063044]
[1773253369348,0.07061249,70809.0,70791.0,0.07063044]
[1773253369567,0.00022001,70814.0,70791.0,0.07063044]
[1773253369819,0.07060152,70820.0,70791.0,0.07063044]
[1773253369973,0.15479837,70820.0,70791.0,0.07063044]
[1773253370146,0.08419685,70819.0,70791.0,0.07063044]
[1773253370654,0.07060152,70821.0,70791.0,0.07063044]
[1773253371155,0.08401828,70820.0,70791.0,0.07063044]
[1773253371597,0.07060252,70819.0,70791.0,0.07063044]
[1773253371800,0.08297154,70818.0,70791.0,0.07063044]
[1773253373281,0.08297154,70818.0,70790.0,0.00037083]
[1773253373486,0.167948,70816.0,70790.0,0.00037083]
[1773253373733,0.07889902,70813.0,70790.0,0.00037083]
[1773253374266,0.07889902,70813.0,70784.0,0.0002]
[1773253374267,0.12522791,70800.0,70751.0,0.27762458]
[1773253374454,0.1254065,70780.0,70773.0,0.00011144]
[1773253374601,0.1254065,70780.0,70756.0,0.07066502]
[1773253374602,0.07880973,70779.0,70756.0,0.11981436]
[1773253374804,0.07880973,70779.0,70756.0,0.19047956]
[1773253375110,0.07880973,70779.0,70756.0,0.11981436]
[1773253375629,0.07880973,70779.0,70760.0,0.09066135]
[1773253375953,0.07755419,70777.0,70760.0,0.02]
[1773253376130,0.07737557,70777.0,70760.0,0.02]
[1773253376303,0.00017862,70776.0,70764.0,0.00014131]
[1773253377121,0.0776435,70776.0,70764.0,0.00014131]
[1773253377773,0.07064641,70775.0,70764.0,0.00014131]
[1773253377955,0.08709449,70774.0,70764.0,0.00014131]
[1773253380095,0.07064841,70773.0,70764.0,0.00014131]
[1773253380656,0.08605194,70772.0,70748.0,0.06377298]
[1773253380855,0.07064841,70773.0,70748.0,0.06388455]
[1773253380856,0.08605194,70769.0,70748.0,0.06388455]
[1773253381079,0.08605194,70769.0,70748.0,0.00011157]
[1773253381281,0.08587335,70769.0,70748.0,0.00011157]
[1773253381598,0.08587335,70769.0,70756.0,0.0002]
[1773253382150,0.0706534,70768.0,70756.0,0.0002]
[1773253382359,0.08557071,70767.0,70756.0,0.0002]
[1773253382810,0.00017862,70775.0,70756.0,0.070865]
[1773253382955,0.08557071,70774.0,70756.0,0.0002]
[1773253383156,0.08557071,70774.0,70756.0,0.07086527]
[1773253383354,0.08557071,70774.0,70756.0,0.0002]
[1773253383781,0.08557071,70774.0,70756.0,0.07086492]
[1773253384179,0.00017862,70775.0,70756.0,0.07086492]
[1773253384382,0.00017862,70775.0,70756.0,0.0002]
[1773253384562,0.08558233,70774.0,70756.0,0.0002]
[1773253385335,0.23857121,70799.0,70756.0,0.0708649]
[1773253385487,0.08591253,70797.0,70756.0,0.0708649]
[1773253386429,0.08591253,70795.0,70756.0,0.0708649]
[1773253386590,0.14006727,70795.0,70756.0,0.0708649]
[1773253386793,0.08591253,70795.0,70756.0,0.0708649]
[1773253387272,0.08591442,70794.0,70756.0,0.0708649]
[1773253387900,0.08591442,70794.0,70764.0,0.00014131]
[1773253388415,0.08591442,70792.0,70764.0,0.00014131]
[1773253389215,0.07062655,70795.0,70764.0,0.00014131]
[1773253389533,0.08591693,70793.0,70764.0,0.00014131]
[1773253390521,0.15654587,70793.0,70764.0,0.00014131]
[1773253390703,0.08591693,70792.0,70764.0,0.00014131]
[1773253391551,0.08591693,70792.0,70764.0,0.00114131]
[1773253391795,0.08591693,70792.0,70764.0,0.00014131]
[1773253392194,0.08591693,70792.0,70764.0,0.00114131]
[1773253392329,0.08591693,70792.0,70764.0,0.00014131]
[1773253392534,0.15654651,70792.0,70764.0,0.00014131]
[1773253392734,0.15654651,70792.0,70764.0,0.00114131]
[1773253392938,0.00017862,70791.0,70764.0,0.00014131]
[1773253393259,0.06638629,70790.0,70764.0,0.00014131]
[1773253393463,0.00017862,70791.0,70764.0,0.00014131]
[1773253394240,0.00017862,70791.0,70764.0,0.00114131]
[1773253394656,0.00017862,70791.0,70765.0,0.07065639]
[1773253394657,0.06656491,70791.0,70765.0,0.07065639]
[1773253395493,0.05345268,70798.0,70765.0,0.07065639]
[1773253395888,0.07084188,70800.0,70765.0,0.07065639]
[1773253395889,0.00022001,70800.0,70765.0,0.07065639]
[1773253396156,0.00022001,70800.0,70765.0,0.07165639]
[1773253396387,0.05367269,70800.0,70765.0,0.07165639]
[1773253397393,0.05367269,70800.0,70765.0,0.07065639]
[1773253397908,0.05367269,70800.0,70765.0,0.07265639]
[1773253398072,0.05367269,70800.0,70766.0,0.737146]
[1773253398264,0.05367269,70800.0,70766.0,0.650493]
[1773253399172,0.05349402,70800.0,70767.0,0.0706544]
[1773253399388,0.00014124,70799.0,70767.0,0.0706544]
[1773253399587,0.05348561,70799.0,70767.0,0.0706544]
[1773253400358,0.05348561,70799.0,70767.0,0.0716544]
[1773253400805,0.05348561,70799.0,70767.0,0.0706544]
[1773253401113,0.05334437,70797.0,70767.0,0.0716544]
[1773253401791,0.05334437,70797.0,70767.0,0.0726544]
[1773253401988,0.05334437,70797.0,70767.0,0.0716544]
[1773253402576,0.05334437,70797.0,70767.0,0.07165437]
[1773253402816,0.05334437,70797.0,70767.0,0.07065425]
[1773253403199,0.05329599,70795.0,70767.0,0.07165425]
[1773253403476,0.05329599,70795.0,70767.0,0.001]
[1773253403679,0.05325012,70789.0,70758.0,0.0002]
[1773253403906,0.05325012,70789.0,70740.0,0.02]
[1773253403907,0.05325012,70779.0,70751.0,0.0002]
[1773253404237,0.05325012,70769.0,70751.0,0.0002]
[1773253404403,0.14055278,70769.0,70751.0,0.0002]
[1773253404585,0.05325012,70769.0,70751.0,0.0002]